[Event "Late-Titled-Tuesday-Blitz-January-16-2024"]
[Site "Chess.com"]
[Date "2024.01.16"]
[Round "4"]
[White "GMCorinnaKopff"]
[Black "th3d4rkness"]
[Result "1-0"]
[WhiteElo "2324"]
[BlackElo "2104"]
[TimeControl "180+1"]
[EndTime "14:38:58 PST"]
[Termination "GMCorinnaKopff won on time"]

1. d4 {[%clk 0:03:00.9]} 1... Nf6 {[%clk 0:02:59.5]} 2. c4 {[%clk 0:02:58.5]}
2... g6 {[%clk 0:02:57.7]} 3. Nc3 {[%clk 0:02:56.9]} 3... d5 {[%clk 0:02:57.4]}
4. cxd5 {[%clk 0:02:53.2]} 4... Nxd5 {[%clk 0:02:57]} 5. Nf3 {[%clk 0:02:54.1]}
5... Bg7 {[%clk 0:02:56.5]} 6. Qb3 {[%clk 0:02:51.3]} 6... Nb6 {[%clk
0:02:51.9]} 7. e4 {[%clk 0:02:49]} 7... O-O {[%clk 0:02:51.1]} 8. Be3 {[%clk
0:02:48.6]} 8... Nc6 {[%clk 0:02:47.4]} 9. Rd1 {[%clk 0:02:45.8]} 9... Bg4
{[%clk 0:02:43.3]} 10. d5 {[%clk 0:02:37.5]} 10... Bxf3 {[%clk 0:02:33.4]} 11.
gxf3 {[%clk 0:02:38.4]} 11... Ne5 {[%clk 0:02:29]} 12. Be2 {[%clk 0:02:38.7]}
12... Qd7 {[%clk 0:02:18.3]} 13. h4 {[%clk 0:02:37.4]} 13... h5 {[%clk 0:02:17]}
14. Bd4 {[%clk 0:02:31]} 14... f5 {[%clk 0:01:49]} 15. f4 {[%clk 0:02:25.8]}
15... Ng4 {[%clk 0:01:46]} 16. Bxg7 {[%clk 0:02:26.1]} 16... Kxg7 {[%clk
0:01:46]} 17. e5 {[%clk 0:02:26.7]} 17... c6 {[%clk 0:01:38.7]} 18. Bf3 {[%clk
0:02:24.3]} 18... cxd5 {[%clk 0:01:35.2]} 19. Nxd5 {[%clk 0:02:24.2]} 19... Nxd5
{[%clk 0:01:30.9]} 20. Rxd5 {[%clk 0:02:19.9]} 20... Qc7 {[%clk 0:01:27.4]} 21.
O-O {[%clk 0:02:17.3]} 21... Rfd8 {[%clk 0:01:18]} 22. Rfd1 {[%clk 0:02:15]}
22... b6 {[%clk 0:01:11.5]} 23. Qb4 {[%clk 0:01:58.8]} 23... Rxd5 {[%clk
0:01:07.6]} 24. Rxd5 {[%clk 0:01:59.7]} 24... Rd8 {[%clk 0:01:04.3]} 25. Rxd8
{[%clk 0:01:45.3]} 25... Qxd8 {[%clk 0:01:03.8]} 26. Bxg4 {[%clk 0:01:46]} 26...
hxg4 {[%clk 0:01:02.3]} 27. Qa4 {[%clk 0:01:39.1]} 27... Qd5 {[%clk 0:00:54.2]}
28. Qe8 {[%clk 0:01:25.4]} 28... Qc5 {[%clk 0:00:41.5]} 29. h5 {[%clk
0:01:13.7]} 29... gxh5 {[%clk 0:00:39]} 30. Qxh5 {[%clk 0:01:12.5]} 30... Qc1+
{[%clk 0:00:38.1]} 31. Kg2 {[%clk 0:01:10]} 31... Qxf4 {[%clk 0:00:38]} 32. e6
{[%clk 0:01:04.5]} 32... Qe4+ {[%clk 0:00:34.6]} 33. Kf1 {[%clk 0:01:04.2]}
33... Qxe6 {[%clk 0:00:33.8]} 34. Qg5+ {[%clk 0:01:04.5]} 34... Kf7 {[%clk
0:00:32.6]} 35. Qh5+ {[%clk 0:01:04.4]} 35... Kf8 {[%clk 0:00:31.1]} 36. Qh8+
{[%clk 0:01:04.1]} 36... Qg8 {[%clk 0:00:30.6]} 37. Qh6+ {[%clk 0:01:01.8]}
37... Ke8 {[%clk 0:00:27.4]} 38. Qc6+ {[%clk 0:01:01.4]} 38... Kf7 {[%clk
0:00:26.8]} 39. Qd5+ {[%clk 0:00:58.3]} 39... e6 {[%clk 0:00:26]} 40. Qd7+
{[%clk 0:00:58.1]} 40... Kf6 {[%clk 0:00:26]} 41. Qxa7 {[%clk 0:00:58.3]} 41...
Qd8 {[%clk 0:00:25.6]} 42. Qa3 {[%clk 0:00:54.7]} 42... Kg5 {[%clk 0:00:20.2]}
43. Qe3+ {[%clk 0:00:53.9]} 43... Kg6 {[%clk 0:00:17.7]} 44. Qxe6+ {[%clk
0:00:53.2]} 44... Qf6 {[%clk 0:00:18]} 45. Qg8+ {[%clk 0:00:52.5]} 45... Kh5
{[%clk 0:00:16.2]} 46. Qh7+ {[%clk 0:00:48.6]} 46... Kg5 {[%clk 0:00:16.2]} 47.
Qg8+ {[%clk 0:00:46]} 47... Kf4 {[%clk 0:00:16.3]} 48. Qb3 {[%clk 0:00:46.7]}
48... Qd4 {[%clk 0:00:14.5]} 49. a4 {[%clk 0:00:37.6]} 49... Kg5 {[%clk
0:00:14.2]} 50. Qg8+ {[%clk 0:00:35.8]} 50... Kf4 {[%clk 0:00:14.4]} 51. Qb3
{[%clk 0:00:36.7]} 51... Kg5 {[%clk 0:00:14.4]} 52. Qc2 {[%clk 0:00:27.9]} 52...
f4 {[%clk 0:00:14.1]} 53. Qb3 {[%clk 0:00:19.9]} 53... f3 {[%clk 0:00:13.4]} 54.
Qb5+ {[%clk 0:00:19.7]} 54... Kh4 {[%clk 0:00:13.5]} 55. Qb3 {[%clk 0:00:16]}
55... Qc5 {[%clk 0:00:08.2]} 56. Qd1 {[%clk 0:00:11.6]} 56... Qc4+ {[%clk
0:00:07.3]} 57. Kg1 {[%clk 0:00:12.1]} 57... Qc5 {[%clk 0:00:05]} 58. Qd8+
{[%clk 0:00:09.1]} 58... Kh5 {[%clk 0:00:04]} 59. Qh8+ {[%clk 0:00:08.3]} 59...
Kg5 {[%clk 0:00:04.3]} 60. Qg7+ {[%clk 0:00:08.3]} 60... Kh5 {[%clk 0:00:04.1]}
61. Qh7+ {[%clk 0:00:06.2]} 61... Kg5 {[%clk 0:00:04.5]} 62. Qg7+ {[%clk
0:00:04.6]} 62... Kh5 {[%clk 0:00:04.5]} 63. Qc3 {[%clk 0:00:05.2]} 1-0

[Event "Late-Titled-Tuesday-Blitz-January-16-2024"]
[Site "Chess.com"]
[Date "2024.01.16"]
[Round "4"]
[White "ValeriyGrinev"]
[Black "FontVella8"]
[Result "0-1"]
[WhiteElo "2564"]
[BlackElo "2747"]
[TimeControl "180+1"]
[EndTime "14:39:08 PST"]
[Termination "FontVella8 won by checkmate"]

1. e4 {[%clk 0:02:56.3]} 1... c6 {[%clk 0:02:59.5]} 2. d3 {[%clk 0:02:55.8]}
2... d5 {[%clk 0:02:59.6]} 3. Nd2 {[%clk 0:02:56]} 3... g6 {[%clk 0:02:59.2]} 4.
g3 {[%clk 0:02:54.1]} 4... Bg7 {[%clk 0:02:57.8]} 5. Bg2 {[%clk 0:02:54.7]} 5...
Nf6 {[%clk 0:02:49.2]} 6. e5 {[%clk 0:02:52.1]} 6... Nfd7 {[%clk 0:02:49.3]} 7.
d4 {[%clk 0:02:52.6]} 7... O-O {[%clk 0:02:49.4]} 8. f3 {[%clk 0:02:52.7]} 8...
e6 {[%clk 0:02:48.9]} 9. f4 {[%clk 0:02:52.6]} 9... c5 {[%clk 0:02:49.5]} 10. c3
{[%clk 0:02:52.3]} 10... Nc6 {[%clk 0:02:49.8]} 11. Ndf3 {[%clk 0:02:51.8]}
11... Qb6 {[%clk 0:02:49]} 12. Ne2 {[%clk 0:02:51.7]} 12... f6 {[%clk
0:02:47.4]} 13. exf6 {[%clk 0:02:48.3]} 13... Nxf6 {[%clk 0:02:47.6]} 14. O-O
{[%clk 0:02:47.9]} 14... Ne4 {[%clk 0:02:47.6]} 15. Kh1 {[%clk 0:02:41]} 15...
cxd4 {[%clk 0:02:47]} 16. cxd4 {[%clk 0:02:40.9]} 16... Bd7 {[%clk 0:02:45]} 17.
b3 {[%clk 0:02:40.3]} 17... Rac8 {[%clk 0:02:43]} 18. Ba3 {[%clk 0:02:38.1]}
18... Nb4 {[%clk 0:02:41.9]} 19. Nd2 {[%clk 0:02:31.3]} 19... Nd6 {[%clk
0:02:24.4]} 20. Bxb4 {[%clk 0:02:11.7]} 20... Qxb4 {[%clk 0:02:23.8]} 21. Nf3
{[%clk 0:02:12.6]} 21... Bb5 {[%clk 0:02:19.7]} 22. Qe1 {[%clk 0:02:04.6]} 22...
Qxe1 {[%clk 0:02:17.2]} 23. Rfxe1 {[%clk 0:02:05.5]} 23... Nf5 {[%clk
0:02:16.8]} 24. Bh3 {[%clk 0:01:54.4]} 24... Rc2 {[%clk 0:02:04.3]} 25. Neg1
{[%clk 0:01:46.2]} 25... Bd3 {[%clk 0:01:56.7]} 26. Ng5 {[%clk 0:01:37.1]} 26...
Rfc8 {[%clk 0:01:42.7]} 27. Rad1 {[%clk 0:01:37.3]} 27... R8c3 {[%clk
0:01:27.3]} 28. Rxe6 {[%clk 0:01:37]} 28... Bxd4 {[%clk 0:01:13.6]} 29. Re8+
{[%clk 0:01:33.2]} 29... Kg7 {[%clk 0:01:11.5]} 30. N1f3 {[%clk 0:01:15.2]}
30... Bf6 {[%clk 0:01:01.3]} 31. Ne1 {[%clk 0:01:14.7]} 31... Rc1 {[%clk
0:00:54.4]} 32. Rxc1 {[%clk 0:01:14.1]} 32... Rxc1 {[%clk 0:00:54.6]} 33. Kg2
{[%clk 0:01:14.8]} 33... Ba6 {[%clk 0:00:38.1]} 34. Nef3 {[%clk 0:00:39]} 34...
Rc2+ {[%clk 0:00:36.4]} 35. Kg1 {[%clk 0:00:38.2]} 35... h6 {[%clk 0:00:29.3]}
36. Ne1 {[%clk 0:00:21.3]} 36... Rc1 {[%clk 0:00:20.6]} 37. Nf3 {[%clk
0:00:21.4]} 37... d4 {[%clk 0:00:18.3]} 38. Bxf5 {[%clk 0:00:17.9]} 38... gxf5
{[%clk 0:00:18.4]} 39. Re6 {[%clk 0:00:17.9]} 39... d3 {[%clk 0:00:16.9]} 40.
Rd6 {[%clk 0:00:18.6]} 40... Be7 {[%clk 0:00:14.4]} 41. Rd7 {[%clk 0:00:18.3]}
41... Kf6 {[%clk 0:00:15]} 42. Kg2 {[%clk 0:00:18.8]} 42... Rd1 {[%clk
0:00:10.2]} 43. a4 {[%clk 0:00:13.8]} 43... Ke6 {[%clk 0:00:09.1]} 44. Rd4
{[%clk 0:00:13.4]} 44... Bc5 {[%clk 0:00:09.3]} 45. Rd8 {[%clk 0:00:12.5]} 45...
Bb4 {[%clk 0:00:09.8]} 46. Kf2 {[%clk 0:00:09.9]} 46... Ke7 {[%clk 0:00:09.7]}
47. Rd5 {[%clk 0:00:09.7]} 47... d2 {[%clk 0:00:07.7]} 48. Nc2 {[%clk
0:00:08.8]} 48... Rf1+ {[%clk 0:00:05.2]} 49. Kg2 {[%clk 0:00:09.4]} 49... d1=Q
{[%clk 0:00:05.6]} 50. Rxd1 {[%clk 0:00:09.2]} 50... Rxd1 {[%clk 0:00:06.5]} 51.
Ne3 {[%clk 0:00:09.9]} 51... Rd3 {[%clk 0:00:06]} 52. Nxf5+ {[%clk 0:00:09.9]}
52... Kf8 {[%clk 0:00:06.2]} 53. Ne5 {[%clk 0:00:10]} 53... Rxb3 {[%clk
0:00:05.9]} 54. Nd4 {[%clk 0:00:10]} 54... Rb2+ {[%clk 0:00:05.9]} 55. Kf3
{[%clk 0:00:10.2]} 55... Bc3 {[%clk 0:00:05.9]} 56. Ne6+ {[%clk 0:00:09.6]}
56... Ke7 {[%clk 0:00:06.4]} 57. Ng7 {[%clk 0:00:09.5]} 57... Bxe5 {[%clk
0:00:06.3]} 58. fxe5 {[%clk 0:00:10.4]} 58... Kf7 {[%clk 0:00:05.8]} 59. Nf5
{[%clk 0:00:11]} 59... Ke6 {[%clk 0:00:05.9]} 60. Nxh6 {[%clk 0:00:11.2]} 60...
Kxe5 {[%clk 0:00:06.4]} 61. Ng4+ {[%clk 0:00:11.6]} 61... Ke6 {[%clk 0:00:05.7]}
62. h4 {[%clk 0:00:11.4]} 62... Rb3+ {[%clk 0:00:06.3]} 63. Kf4 {[%clk
0:00:11.2]} 63... b5 {[%clk 0:00:07]} 64. h5 {[%clk 0:00:11.6]} 64... bxa4
{[%clk 0:00:07]} 65. h6 {[%clk 0:00:12.2]} 65... Rb7 {[%clk 0:00:06.6]} 66. Kg5
{[%clk 0:00:09.6]} 66... a3 {[%clk 0:00:06.9]} 67. Nf6 {[%clk 0:00:10.5]} 67...
a2 {[%clk 0:00:05.5]} 68. h7 {[%clk 0:00:11.4]} 68... Rxh7 {[%clk 0:00:05.3]}
69. Nxh7 {[%clk 0:00:11.6]} 69... a1=Q {[%clk 0:00:05.8]} 70. Nf8+ {[%clk
0:00:12.5]} 70... Kf7 {[%clk 0:00:06]} 71. Ng6 {[%clk 0:00:13.4]} 71... Qf6+
{[%clk 0:00:06.1]} 72. Kh5 {[%clk 0:00:12.9]} 72... Be2+ {[%clk 0:00:06.6]} 73.
g4 {[%clk 0:00:13]} 73... Qf5+ {[%clk 0:00:06]} 74. Kh4 {[%clk 0:00:13.9]} 74...
Qxg4# {[%clk 0:00:06.2]} 0-1

[Event "Late-Titled-Tuesday-Blitz-January-16-2024"]
[Site "Chess.com"]
[Date "2024.01.16"]
[Round "4"]
[White "GrotBchess"]
[Black "nfds"]
[Result "1-0"]
[WhiteElo "2321"]
[BlackElo "2489"]
[TimeControl "180+1"]
[EndTime "14:39:08 PST"]
[Termination "GrotBchess won by resignation"]

1. e4 {[%clk 0:03:00.9]} 1... e5 {[%clk 0:02:53]} 2. Nf3 {[%clk 0:03:00.2]} 2...
d6 {[%clk 0:02:47.5]} 3. d4 {[%clk 0:02:59.5]} 3... Nd7 {[%clk 0:02:46.4]} 4.
Nc3 {[%clk 0:02:59]} 4... exd4 {[%clk 0:02:43]} 5. Nxd4 {[%clk 0:02:59.9]} 5...
Ngf6 {[%clk 0:02:42.8]} 6. Be3 {[%clk 0:02:55.4]} 6... Be7 {[%clk 0:02:39.4]} 7.
Qd2 {[%clk 0:02:54.2]} 7... c6 {[%clk 0:02:38.6]} 8. Nf5 {[%clk 0:02:47]} 8...
O-O {[%clk 0:02:32.5]} 9. Nxd6 {[%clk 0:02:42.6]} 9... Ng4 {[%clk 0:02:17.1]}
10. Bf4 {[%clk 0:02:33.3]} 10... Qb6 {[%clk 0:02:08.2]} 11. Nc4 {[%clk
0:02:20.8]} 11... Qc5 {[%clk 0:01:49.3]} 12. h3 {[%clk 0:02:15.5]} 12... Nge5
{[%clk 0:01:13.2]} 13. Nxe5 {[%clk 0:02:12]} 13... Nxe5 {[%clk 0:01:12.5]} 14.
O-O-O {[%clk 0:02:08.5]} 14... Bf6 {[%clk 0:01:07]} 15. Be3 {[%clk 0:02:02.5]}
15... Qb4 {[%clk 0:01:04.6]} 16. a3 {[%clk 0:01:54]} 16... Qa5 {[%clk 0:00:57]}
17. f4 {[%clk 0:01:53.2]} 17... Ng6 {[%clk 0:00:52.1]} 18. e5 {[%clk 0:01:50]}
18... Be7 {[%clk 0:00:43.9]} 19. Kb1 {[%clk 0:01:48.4]} 19... Rd8 {[%clk
0:00:27.3]} 20. Bd3 {[%clk 0:01:41.6]} 20... Bf5 {[%clk 0:00:25.9]} 21. Ne4
{[%clk 0:01:32.7]} 21... Qc7 {[%clk 0:00:21.1]} 22. Qc3 {[%clk 0:01:24.9]} 22...
Be6 {[%clk 0:00:17.4]} 23. Nc5 {[%clk 0:01:20.7]} 23... Bd5 {[%clk 0:00:17]} 24.
Be4 {[%clk 0:01:13.1]} 24... b6 {[%clk 0:00:16]} 25. Bxd5 {[%clk 0:00:50.4]}
25... cxd5 {[%clk 0:00:16.9]} 26. Ne4 {[%clk 0:00:44.4]} 26... Qb7 {[%clk
0:00:11.2]} 27. Ng3 {[%clk 0:00:38.7]} 27... Rac8 {[%clk 0:00:11.4]} 28. Qb3
{[%clk 0:00:38.3]} 28... d4 {[%clk 0:00:10.1]} 29. Bc1 {[%clk 0:00:33.6]} 29...
Qxg2 {[%clk 0:00:07.6]} 30. Nf5 {[%clk 0:00:28]} 30... Bf8 {[%clk 0:00:06.8]}
31. h4 {[%clk 0:00:25.4]} 31... Qe4 {[%clk 0:00:06.6]} 32. Ng3 {[%clk
0:00:23.1]} 32... Qd5 {[%clk 0:00:07]} 33. h5 {[%clk 0:00:22.5]} 33... Ne7
{[%clk 0:00:07.2]} 34. Qxd5 {[%clk 0:00:22]} 34... Rxd5 {[%clk 0:00:05.8]} 35.
Ne4 {[%clk 0:00:20.6]} 35... Nf5 {[%clk 0:00:05.2]} 36. h6 {[%clk 0:00:20.4]}
36... Be7 {[%clk 0:00:04.3]} 37. hxg7 {[%clk 0:00:20.3]} 37... Kxg7 {[%clk
0:00:03.6]} 38. Rhg1+ {[%clk 0:00:20.6]} 38... Kh8 {[%clk 0:00:04]} 39. Rg4
{[%clk 0:00:18.3]} 39... Rcd8 {[%clk 0:00:04.3]} 40. Rdg1 {[%clk 0:00:17.7]}
40... Ne3 {[%clk 0:00:04.3]} 41. Bxe3 {[%clk 0:00:17]} 41... dxe3 {[%clk
0:00:05.2]} 42. Ka2 {[%clk 0:00:16.9]} 42... e2 {[%clk 0:00:05]} 43. Re1 {[%clk
0:00:16.5]} 43... Rd4 {[%clk 0:00:05]} 44. Rxe2 {[%clk 0:00:16.2]} 44... h5
{[%clk 0:00:05.9]} 45. Rg3 {[%clk 0:00:15]} 45... Kh7 {[%clk 0:00:06.1]} 46. Rh3
{[%clk 0:00:15.2]} 46... h4 {[%clk 0:00:06.3]} 47. Ng5+ {[%clk 0:00:14.5]} 47...
Bxg5 {[%clk 0:00:06]} 48. fxg5 {[%clk 0:00:14.7]} 48... Kg6 {[%clk 0:00:06.8]}
49. e6 {[%clk 0:00:13.8]} 49... fxe6 {[%clk 0:00:04.2]} 50. Rxe6+ {[%clk
0:00:14.7]} 50... Kxg5 {[%clk 0:00:05]} 51. Re7 {[%clk 0:00:14.9]} 51... Rg8
{[%clk 0:00:04.1]} 52. Rxa7 {[%clk 0:00:13.7]} 52... Rg4 {[%clk 0:00:03.7]} 53.
Rb7 {[%clk 0:00:10.4]} 53... Rg6 {[%clk 0:00:03.9]} 54. Rd7 {[%clk 0:00:08.9]}
54... Rg3 {[%clk 0:00:02.7]} 55. Rd5+ {[%clk 0:00:08.8]} 55... Kg4 {[%clk
0:00:01.7]} 56. Rh1 {[%clk 0:00:09.3]} 56... Rg5 {[%clk 0:00:01.5]} 57. Rd4+
{[%clk 0:00:09.4]} 57... Kh5 {[%clk 0:00:02.4]} 58. Rhxh4+ {[%clk 0:00:08.5]}
58... Kg6 {[%clk 0:00:03.3]} 59. Rd6+ {[%clk 0:00:08.7]} 59... Kf5 {[%clk
0:00:04.2]} 60. Rxb6 {[%clk 0:00:08.8]} 60... Rg2 {[%clk 0:00:05.1]} 61. Rb5+
{[%clk 0:00:08.8]} 61... Ke6 {[%clk 0:00:05.6]} 62. Rxg5 {[%clk 0:00:08.7]}
62... Rxg5 {[%clk 0:00:06.5]} 63. Rc4 {[%clk 0:00:08.9]} 63... Kd6 {[%clk
0:00:07.4]} 64. Rc3 {[%clk 0:00:09.5]} 64... Kd5 {[%clk 0:00:08]} 65. a4 {[%clk
0:00:10]} 65... Kd4 {[%clk 0:00:08.6]} 66. Ka3 {[%clk 0:00:10.1]} 66... Rg8
{[%clk 0:00:08.8]} 67. Rc7 {[%clk 0:00:09]} 67... Rb8 {[%clk 0:00:09.7]} 68. b4
{[%clk 0:00:08.8]} 68... Kd5 {[%clk 0:00:10.6]} 69. c4+ {[%clk 0:00:08.7]} 69...
Kd6 {[%clk 0:00:11.5]} 70. Rc5 {[%clk 0:00:08.6]} 70... Rf8 {[%clk 0:00:11.4]}
71. a5 {[%clk 0:00:09.2]} 71... Rf1 {[%clk 0:00:12.3]} 72. Ka4 {[%clk
0:00:09.4]} 72... Ra1+ {[%clk 0:00:12.1]} 73. Kb5 {[%clk 0:00:09.9]} 73... Rh1
{[%clk 0:00:13]} 74. a6 {[%clk 0:00:10]} 74... Rh8 {[%clk 0:00:13.9]} 75. Ka5
{[%clk 0:00:10.1]} 75... Rb8 {[%clk 0:00:14.8]} 76. a7 {[%clk 0:00:10]} 76...
Ra8 {[%clk 0:00:15.7]} 77. Ka6 {[%clk 0:00:10.5]} 77... Rg8 {[%clk 0:00:16.6]}
78. Kb7 {[%clk 0:00:10.8]} 78... Rg1 {[%clk 0:00:17.5]} 79. a8=Q {[%clk
0:00:10.7]} 79... Rb1 {[%clk 0:00:17.5]} 80. Qd8+ {[%clk 0:00:11.1]} 1-0

[Event "Late-Titled-Tuesday-Blitz-January-16-2024"]
[Site "Chess.com"]
[Date "2024.01.16"]
[Round "4"]
[White "NikolaGry"]
[Black "iturrizaga"]
[Result "1-0"]
[WhiteElo "2753"]
[BlackElo "3005"]
[TimeControl "180+1"]
[EndTime "14:39:12 PST"]
[Termination "NikolaGry won by resignation"]

1. e4 {[%clk 0:03:00.9]} 1... c5 {[%clk 0:03:00]} 2. Nf3 {[%clk 0:02:59.4]} 2...
e6 {[%clk 0:03:00.5]} 3. c3 {[%clk 0:02:57.7]} 3... d5 {[%clk 0:03:00.2]} 4.
exd5 {[%clk 0:02:57.7]} 4... Qxd5 {[%clk 0:03:00.8]} 5. d4 {[%clk 0:02:57.9]}
5... Nf6 {[%clk 0:03:01.5]} 6. Na3 {[%clk 0:02:55.9]} 6... Nc6 {[%clk
0:02:58.2]} 7. Nb5 {[%clk 0:02:50.8]} 7... Qd8 {[%clk 0:02:58.3]} 8. dxc5 {[%clk
0:02:38.6]} 8... Bxc5 {[%clk 0:02:59.2]} 9. Qxd8+ {[%clk 0:02:36.5]} 9... Kxd8
{[%clk 0:03:00.1]} 10. Bf4 {[%clk 0:02:20.7]} 10... Nd5 {[%clk 0:03:00]} 11. Bg3
{[%clk 0:02:10.6]} 11... Ke7 {[%clk 0:02:57]} 12. Bc4 {[%clk 0:02:07.1]} 12...
a6 {[%clk 0:02:52]} 13. Nbd4 {[%clk 0:01:57.1]} 13... Nxd4 {[%clk 0:02:42.8]}
14. Nxd4 {[%clk 0:01:53.5]} 14... Nb6 {[%clk 0:02:21.9]} 15. Bb3 {[%clk
0:01:45.9]} 15... Bd7 {[%clk 0:02:21.2]} 16. O-O-O {[%clk 0:01:43.5]} 16... Rhc8
{[%clk 0:01:52.3]} 17. Rhe1 {[%clk 0:01:36.1]} 17... Kf8 {[%clk 0:01:52.8]} 18.
f4 {[%clk 0:01:13.2]} 18... Be7 {[%clk 0:01:33.1]} 19. Bf2 {[%clk 0:01:06]}
19... Nc4 {[%clk 0:01:18.6]} 20. Nf5 {[%clk 0:00:53.8]} 20... Bb5 {[%clk
0:00:54.8]} 21. Nxe7 {[%clk 0:00:51.9]} 21... Kxe7 {[%clk 0:00:55.7]} 22. f5
{[%clk 0:00:44.4]} 22... Bd7 {[%clk 0:00:21]} 23. Bh4+ {[%clk 0:00:32]} 23...
Ke8 {[%clk 0:00:21.1]} 24. Rd4 {[%clk 0:00:27.2]} 24... Na5 {[%clk 0:00:17.7]}
25. Bc2 {[%clk 0:00:23.4]} 25... Nc6 {[%clk 0:00:15.5]} 26. Rg4 {[%clk
0:00:18.6]} 26... g6 {[%clk 0:00:14.6]} 27. fxe6 {[%clk 0:00:15.8]} 27... Bxe6
{[%clk 0:00:14.5]} 28. Bb3 {[%clk 0:00:16]} 28... Kd7 {[%clk 0:00:14.2]} 29.
Bxe6+ {[%clk 0:00:14.3]} 29... fxe6 {[%clk 0:00:15.1]} 30. Bg3 {[%clk
0:00:12.8]} 30... Rf8 {[%clk 0:00:08.6]} 31. Rge4 {[%clk 0:00:09.1]} 31... Rae8
{[%clk 0:00:07.6]} 32. Rd1+ {[%clk 0:00:09.2]} 32... Kc8 {[%clk 0:00:07.7]} 33.
b4 {[%clk 0:00:08.3]} 33... Rf5 {[%clk 0:00:07.3]} 34. a4 {[%clk 0:00:08.1]}
34... h5 {[%clk 0:00:07]} 35. h3 {[%clk 0:00:07]} 35... g5 {[%clk 0:00:06.8]}
36. Rd6 {[%clk 0:00:06.3]} 36... h4 {[%clk 0:00:06.7]} 37. Be1 {[%clk 0:00:06]}
37... Re5 {[%clk 0:00:06.1]} 38. Rxe5 {[%clk 0:00:05]} 38... Nxe5 {[%clk
0:00:07]} 39. Kc2 {[%clk 0:00:05.1]} 39... Re7 {[%clk 0:00:06.6]} 40. Rd4 {[%clk
0:00:05]} 40... Nc6 {[%clk 0:00:06.5]} 41. Re4 {[%clk 0:00:04.6]} 41... Kd7
{[%clk 0:00:05.8]} 42. Bd2 {[%clk 0:00:04.9]} 42... b5 {[%clk 0:00:05.7]} 43.
axb5 {[%clk 0:00:04.5]} 43... axb5 {[%clk 0:00:06.6]} 44. Rg4 {[%clk 0:00:03.1]}
44... Rf7 {[%clk 0:00:05.2]} 45. Rxg5 {[%clk 0:00:02.7]} 45... Rf2 {[%clk
0:00:05.5]} 46. Rg7+ {[%clk 0:00:02.8]} 46... Kd6 {[%clk 0:00:05.5]} 47. Kd3
{[%clk 0:00:03.2]} 47... Ne5+ {[%clk 0:00:05.8]} 48. Ke3 {[%clk 0:00:03.6]}
48... Rf5 {[%clk 0:00:06.1]} 49. Ke4 {[%clk 0:00:03.5]} 49... Nc4 {[%clk
0:00:06.5]} 50. Bf4+ {[%clk 0:00:03.6]} 50... Kc6 {[%clk 0:00:07.1]} 51. Rc7+
{[%clk 0:00:03.6]} 51... Kb6 {[%clk 0:00:07.7]} 52. Re7 {[%clk 0:00:04.2]} 52...
Rf8 {[%clk 0:00:06]} 53. Rxe6+ {[%clk 0:00:04.3]} 53... Kb7 {[%clk 0:00:06.7]}
54. Re7+ {[%clk 0:00:04.3]} 54... Kc6 {[%clk 0:00:06.8]} 55. Rh7 {[%clk
0:00:04.8]} 55... Re8+ {[%clk 0:00:06.8]} 56. Kf3 {[%clk 0:00:04.5]} 56... Re1
{[%clk 0:00:07]} 57. Rxh4 {[%clk 0:00:04]} 57... Rf1+ {[%clk 0:00:07.6]} 58. Kg4
{[%clk 0:00:04.1]} 58... Rf2 {[%clk 0:00:07.7]} 59. Rh6+ {[%clk 0:00:04.1]}
59... Kd5 {[%clk 0:00:07.7]} 60. g3 {[%clk 0:00:04.5]} 60... Rc2 {[%clk
0:00:07.7]} 61. h4 {[%clk 0:00:04.7]} 61... Rxc3 {[%clk 0:00:08]} 62. h5 {[%clk
0:00:05]} 62... Rb3 {[%clk 0:00:07.9]} 63. Rh8 {[%clk 0:00:05.1]} 63... Rxb4
{[%clk 0:00:08.3]} 64. h6 {[%clk 0:00:05.4]} 64... Ne5+ {[%clk 0:00:08.9]} 65.
Kf5 {[%clk 0:00:04.6]} 65... Nf7 {[%clk 0:00:09]} 66. Rf8 {[%clk 0:00:04.4]}
66... Nd6+ {[%clk 0:00:01.9]} 67. Bxd6 {[%clk 0:00:03.1]} 67... Kxd6 {[%clk
0:00:02.8]} 68. h7 {[%clk 0:00:03.3]} 68... Rh4 {[%clk 0:00:02.5]} 69. gxh4
{[%clk 0:00:02.8]} 1-0